Workbook

Sheet Start
B1: ÜBER DIESE VORLAGE
B2: Verwenden Sie die Arbeitsmappe "Veranstaltungsbudget", um die aufgelaufenen Ausgaben und Einnahmen im Rahmen einer Veranstaltung nachzuverfolgen.
B3: Füllen Sie "Veranstaltungsname" aus, und geben Sie Details in die Tabellen der Arbeitsblätter "Ausgaben" und "Einnahmen" ein.
B4: Die Gesamtausgaben und Gesamteinnahmen werden automatisch berechnet.
B5: Die Zusammenfassung von Gewinn und Verlust und das Diagramm werden im Arbeitsblatt "Zusammenfassung" automatisch aktualisiert.
B6: Anmerkung:
B7: Weitere Anweisungen wurden in Spalte A auf jedem Arbeitsblatt bereitgestellt. Diese Texte wurden absichtlich ausgeblendet. Um die Texte zu entfernen, wählen Sie Spalte A und dann ENTF aus. Um die Texte einzublenden, wählen Sie Spalte A aus, und ändern Sie die Schriftfarbe.
B8: Wenn Sie mehr zu Tabellen erfahren möchten, drücken Sie die UMSCHALTTASTE und dann innerhalb einer Tabelle F10, wählen Sie die Option "TABELLE" und dann "ALTERNATIVTEXT" aus.

Sheet Ausgaben
A1: Geben Sie die geschätzt und tatsächlich Ausgaben für jede Kategorie in den jeweiligen Tabellen dieses Arbeitsblatts ein. Die Gesamtausgaben werden automatisch berechnet. Hilfreiche Anweisungen zur Verwendung dieses Arbeitsblatts stehen in Zellen in dieser Spalte. Drücken Sie die NACH-UNTEN-TASTE, um anzufangen.
A2: Geben Sie den Veranstaltungsname in der Zelle rechts ein, um den Titel dieses Arbeitsblatts und anderer Arbeitsblätter anzupassen. | B2: Veranstaltungsbudget für Veranstaltungsname
A3: Die Bezeichnung "Ausgaben" steht in Zelle G3. | G3: Ausgaben
A4: Die Bezeichnung "Geschätzt" steht in Zelle G4 und die Bezeichnung "Tatsächlich" in Zelle H4. | G4: Geschätzt | H4: Tatsächlich
A5: Die Bezeichnung "Gesamtausgaben" steht in der Zelle rechts. Die geschätzt Gesamtausgaben werden in Zelle G5 automatisch berechnet. Die tatsächlich Gesamtausgaben und der Datenbalken zur Darstellung der tatsächlich Gesamtausgaben werden in Zelle H5 automatisch aktualisiert. Die nächste Anweisung finden Sie in Zelle A7. | B5: Gesamtausgaben | G5: =SUM(C12,C20,C26,C33,G12,G20,G25) -> 1,145.00 € | H5: =SUM(D12,D20,D26,D33,H12,H20,H25) -> 395.00 €
A7: Geben Sie die Ausgaben für Veranstaltungsort in der Tabelle ab der Zelle rechts und die Ausgaben für Erfrischungen ab Zelle F7 ein. Die nächste Anweisung finden Sie in Zelle A14. | B7: Veranstaltungsort | C7: Geschätzt | D7: Tatsächlich | F7: Erfrischungen | G7: Geschätzt | H7: Tatsächlich
B8: Gebühren für Raum und Halle | C8: 500.00 € | D8: 250.00 € | F8: Essen
B9: Personal am Veranstaltungsort | C9: 400.00 € | D9: 50.00 € | F9: Getränke
B10: Ausstattung | F10: Tischwäsche
B11: Tische und Stühle | F11: Personal und Trinkgelder
B12: Ergebnis | C12: =SUBTOTAL(109,AusgabenFürVeranstaltungsort[Geschätzt]) -> 900.00 € | D12: =SUBTOTAL(109,AusgabenFürVeranstaltungsort[Tatsächlich]) -> 300.00 € | F12: Ergebnis | G12: =SUBTOTAL(109,AusgabenFürErfrischungen[Geschätzt]) -> 0.00 € | H12: =SUBTOTAL(109,AusgabenFürErfrischungen[Tatsächlich]) -> 0.00 €
A14: Geben Sie die Ausgaben für Dekorationen in der Tabelle ab der Zelle rechts und die Ausgaben für Programm ab Zelle F14 ein. Die nächste Anweisung finden Sie in Zelle A22. | B14: Dekorationen | C14: Geschätzt | D14: Tatsächlich | F14: Programm | G14: Geschätzt | H14: Tatsächlich
B15: Blumen | C15: 200.00 € | D15: 50.00 € | F15: Künstler
B16: Kerzen | F16: Referenten
B17: Beleuchtung | F17: Reise
B18: Ballons | F18: Hotel
B19: Papierlieferungen | F19: Sonstiges
B20: Ergebnis | C20: =SUBTOTAL(109,AusgabenFürDekorationen[Geschätzt]) -> 200.00 € | D20: =SUBTOTAL(109,AusgabenFürDekorationen[Tatsächlich]) -> 50.00 € | F20: Ergebnis | G20: =SUBTOTAL(109,AusgabenFürProgramm[Geschätzt]) -> 0.00 € | H20: =SUBTOTAL(109,AusgabenFürProgramm[Tatsächlich]) -> 0.00 €
A22: Geben Sie die Ausgaben für Öffentlichkeitsarbeit in der Tabelle ab der Zelle rechts und die Ausgaben für Preise ab Zelle F22 ein. Die nächste Anweisung finden Sie in Zelle A28. | B22: Öffentlichkeitsarbeit | C22: Geschätzt | D22: Tatsächlich | F22: Preise | G22: Geschätzt | H22: Tatsächlich
B23: Grafikarbeiten | C23: 45.00 € | D23: 45.00 € | F23: Schleifen/Plaketten/Pokale
B24: Kopieren/Drucken | F24: Geschenke
B25: Porto | F25: Ergebnis | G25: =SUBTOTAL(109,AusgabenFürPreise[Geschätzt]) -> 0.00 € | H25: =SUBTOTAL(109,AusgabenFürPreise[Tatsächlich]) -> 0.00 €
B26: Ergebnis | C26: =SUBTOTAL(109,AusgabenFürÖffentlichkeitsarbeit[Geschätzt]) -> 45.00 € | D26: =SUBTOTAL(109,AusgabenFürÖffentlichkeitsarbeit[Tatsächlich]) -> 45.00 €
A28: Geben Sie die Ausgaben für Sonstiges in der Tabelle ab der Zelle rechts ein. | B28: Sonstiges | C28: Geschätzt | D28: Tatsächlich
B29: Telefon
B30: Beförderung
B31: Büromaterial
B32: Faxdienste
B33: Summe | C33: =SUBTOTAL(109,AusgabenFürSonstiges[Geschätzt]) -> 0.00 € | D33: =SUBTOTAL(109,AusgabenFürSonstiges[Tatsächlich]) -> 0.00 €

Sheet Einnahmen
A1: Geben Sie die geschätzten und tatsächlichen Einnahmen für jede Kategorie in den jeweiligen Tabellen dieses Arbeitsblatts ein. Die Gesamteinnahmen werden automatisch berechnet. Hilfreiche Anweisungen zur Verwendung dieses Arbeitsblatts stehen in Zellen in dieser Spalte. Drücken Sie die NACH-UNTEN-TASTE, um anzufangen.
A2: Der Veranstaltungsname in der Zelle rechts wird automatisch aktualisiert. | B2: =Ausgaben!B2 -> Veranstaltungsbudget für Veranstaltungsname
A3: Die Bezeichnung "Einnahmen" steht in Zelle F3. | F3: Einnahmen
A4: Die Bezeichnung "Geschätzt" steht in Zelle F4 und die Bezeichnung "Tatsächlich" in Zelle G4. | F4: Geschätzt | G4: Tatsächlich
A5: Die Bezeichnung "Gesamteinnahmen" steht in der Zelle rechts. Die geschätzte Summe werden in Zelle F5 automatisch berechnet. Die tatsächliche Summe und der Datenbalken zur Darstellung der tatsächlichen Gesamteinnahmen werden in Zelle G5 automatisch aktualisiert. | B5: Gesamteinnahmen | F5: =SUM(Eintritte[[#Totals],[Geschätzte Summe]],WerbeanzeigenImProgramm[[#Totals],[Geschätzte Summe]],AusstellerUndLieferanten[[#Totals],[Geschätzte Summe]],VerkaufVonArtikel[[#Totals],[Geschätzte Summe]]) -> 1,936.00 € | G5: =SUM(Eintritte[[#Totals],[Tatsächliche Summe]],WerbeanzeigenImProgramm[[#Totals],[Tatsächliche Summe]],AusstellerUndLieferanten[[#Totals],[Tatsächliche Summe]],VerkaufVonArtikel[[#Totals],[Tatsächliche Summe]]) -> 1,831.00 €
A6: Die Bezeichnung "Eintritte" steht in der Zelle rechts. | B6: Eintritte
A7: Geben Sie in der Tabelle ab der Zelle rechts die geschätzt und tatsächlich Anzahl der Eintritte mit den Ticketpreisen ein. Die geschätzt und tatsächlich Einnahmen aus Eintritten werden automatisch berechnet. Die nächste Anweisung finden Sie in Zelle A12. | B7: Geschätzt | C7: Tatsächlich | D7: Typ | E7: Preis | F7: Geschätzte Summe | G7: Tatsächliche Summe
B8: 300 | C8: 278 | D8: Erwachsene @ | E8: 5.00 € | F8: =B8*E8 -> 1,500.00 € | G8: =C8*E8 -> 1,390.00 €
B9: 197 | C9: 195 | D9: Kinder @ | E9: 2.00 € | F9: =B9*E9 -> 394.00 € | G9: =C9*E9 -> 390.00 €
B10: 42 | C10: 51 | D10: Andere @ | E10: 1.00 € | F10: 42.00 € | G10: 51.00 €
F11: =SUBTOTAL(109,Eintritte[Geschätzte Summe]) -> 1,936.00 € | G11: =SUBTOTAL(109,Eintritte[Tatsächliche Summe]) -> 1,831.00 €
A12: Die Bezeichnung "Werbeanzeigen im Programm" steht in der Zelle rechts. | B12: Werbeanzeigen im Programm
A13: Geben Sie in der Tabelle ab der Zelle rechts die geschätzt und tatsächlich Anzahl der Werbeanzeigen im Programm und die Anzeigenpreise ein. Die geschätzt und tatsächlich Einnahmen aus Werbeanzeigen werden automatisch berechnet. Die nächste Anweisung finden Sie in Zelle A18. | B13: Geschätzt | C13: Tatsächlich | D13: Typ | E13: Preis | F13: Geschätzte Summe | G13: Tatsächliche Summe
D14: Deckblätter @ | F14: =B14*E14 -> 0.00 € | G14: =C14*E14 -> 0.00 €
D15: Halbe Seiten @ | F15: =B15*E15 -> 0.00 € | G15: =C15*E15 -> 0.00 €
D16: Viertelseiten @ | F16: 0.00 € | G16: 0.00 €
F17: =SUBTOTAL(109,WerbeanzeigenImProgramm[Geschätzte Summe]) -> 0.00 € | G17: =SUBTOTAL(109,WerbeanzeigenImProgramm[Tatsächliche Summe]) -> 0.00 €
A18: Die Bezeichnung "Aussteller oder Lieferanten" steht in der Zelle rechts. | B18: Aussteller/Lieferanten
A19: Geben Sie in der Tabelle ab der Zelle rechts die geschätzt und tatsächlich Anzahl von Aussteller und Lieferanten sowie die Messestandpreise ein. Die geschätzt und tatsächlich Einnahmen werden automatisch berechnet. Die nächste Anweisung finden Sie in Zelle A24. | B19: Geschätzt | C19: Tatsächlich | D19: Typ | E19: Preis | F19: Geschätzte Summe | G19: Tatsächliche Summe
D20: Große Stände @ | F20: =B20*E20 -> 0.00 € | G20: =C20*E20 -> 0.00 €
D21: Mittelgroße Stände @ | F21: =B21*E21 -> 0.00 € | G21: =C21*E21 -> 0.00 €
D22: Kleine Stände @ | F22: 0.00 € | G22: 0.00 €
F23: =SUBTOTAL(109,AusstellerUndLieferanten[Geschätzte Summe]) -> 0.00 € | G23: =SUBTOTAL(109,AusstellerUndLieferanten[Tatsächliche Summe]) -> 0.00 €
A24: Die Bezeichnung "Verkauf von Artikeln" steht in der Zelle rechts. | B24: Verkauf von Artikeln
A25: Geben Sie in der Tabelle ab der Zelle rechts die geschätzte und tatsächliche Anzahl der verkauften Artikel und die Artikelpreise ein. Die geschätzten und tatsächlichen Einnahmen werden automatisch berechnet. | B25: Geschätzt | C25: Tatsächlich | D25: Typ | E25: Preis | F25: Geschätzte Summe | G25: Tatsächliche Summe
D26: Artikel @ | F26: =B26*E26 -> 0.00 € | G26: =C26*E26 -> 0.00 €
D27: Artikel @ | F27: =B27*E27 -> 0.00 € | G27: =C27*E27 -> 0.00 €
D28: Artikel @ | F28: 0.00 € | G28: 0.00 €
D29: Artikel @ | F29: 0.00 € | G29: 0.00 €
F30: =SUBTOTAL(109,VerkaufVonArtikel[Geschätzte Summe]) -> 0.00 € | G30: =SUBTOTAL(109,VerkaufVonArtikel[Tatsächliche Summe]) -> 0.00 €

Sheet Zusammenfassung
A1: "Zusammenfassung_Gewinn und Verlust" und das Diagramm mit "Gesamteinnahmen" werden in diesem Arbeitsblatt automatisch aktualisiert. Hilfreiche Anweisungen zur Verwendung dieses Arbeitsblatts stehen in Zellen in dieser Spalte. Drücken Sie die NACH-UNTEN-TASTE, um anzufangen.
A2: Der Veranstaltungsname in der Zelle rechts wird automatisch aktualisiert. | B2: =Ausgaben!B2 -> Veranstaltungsbudget für Veranstaltungsname
A3: Die Bezeichnung "Zusammenfassung_Gewinn–Verlust" steht in Zelle C3. Die nächste Anweisung finden Sie in Zelle A5. | C3: Zusammenfassung_Gewinn–Verlust
A5: Die Tabelle "Summe" ab der Zelle rechts wird automatisch aktualisiert. Die nächste Anweisung finden Sie in Zelle A9. | B5: Summe | C5: Geschätzt | D5: Tatsächlich
B6: Gesamteinnahmen | C6: =Einnahmen!F5 -> 1,936.00 € | D6: =Einnahmen!G5 -> 1,831.00 €
B7: Gesamtausgaben | C7: =Ausgaben!G5 -> 1,145.00 € | D7: =Ausgaben!H5 -> 395.00 €
B8: Gesamtgewinn (oder -verlust) | C8: =C6-C7 -> 791.00 € | D8: =D6-D7 -> 1,436.00 €
A9: In der Zelle rechts gibt es ein gruppiertes Säulendiagramm mit einem Vergleich von "Geschätzt und tatsächlich Gesamteinnahmen"und "Gesamtausgaben". | B9: In dieser Zelle gibt es ein gruppiertes Säulendiagramm mit einem Vergleich von "Geschätzt und tatsächlich Gesamteinnahmen"und "Gesamtausgaben".
